bitfinex-derivatives/quotes_ETHF0:USTF0_20250904
["timestamp","ask_amount","ask_price","bid_price","bid_amount"]
[1756957503940,0.7161,4399.9,4399.8,1.97702367]
[1756957504143,0.4101,4399.9,4399.4,1.97702367]
[1756957504347,0.529,4399.5,4399.0,1.97702367]
[1756957504539,0.7161,4399.4,4399.3,0.1958]
[1756957504848,0.7161,4399.4,4399.3,0.4328]
[1756957505235,0.1189,4400.5,4400.2,0.3089]
[1756957505236,0.4249,4400.5,4400.2,0.3089]
[1756957505437,0.6248,4400.5,4400.4,2.67682367]
[1756957505633,0.6248,4400.5,4400.4,2.91382367]
[1756957506042,0.5059,4400.5,4400.4,2.91382367]
[1756957507351,0.5059,4400.9,4400.8,0.6998]
[1756957507539,0.5059,4400.9,4400.8,0.9368]
[1756957507846,0.7161,4400.9,4400.8,0.237]
[1756957509450,0.835,4400.5,4400.4,0.1958]
[1756957509747,0.835,4400.5,4400.4,0.4328]
[1756957510055,0.7161,4399.8,4399.7,2.17282367]
[1756957510251,0.7161,4399.8,4399.7,2.40982367]
[1756957511340,0.7161,4399.8,4399.7,2.60492367]
[1756957512944,0.7161,4399.8,4399.7,2.89872367]
[1756957513139,0.5059,4399.8,4399.7,2.89872367]
[1756957513647,0.306,4399.8,4399.7,2.89872367]
[1756957514745,0.3098,4400.4,4399.7,2.60492367]
[1756957514956,0.5177,4400.4,4400.3,0.6932]
[1756957515145,0.5177,4400.4,4400.3,0.9302]
[1756957515346,0.7093,4400.4,4400.3,0.9302]
[1756957515545,0.7093,4400.4,4400.3,0.4288]
[1756957516442,0.7093,4400.4,4400.3,0.9302]
[1756957516648,0.3098,4400.4,4400.3,2.90722367]
[1756957518845,0.5177,4400.4,4400.3,2.90722367]
[1756957519052,0.7093,4400.4,4400.3,2.61342367]
[1756957519248,0.7093,4400.4,4400.3,0.6364]
[1756957519455,0.7093,4400.4,4400.3,0.1918]
[1756957519657,0.7093,4400.4,4400.3,0.237]
[1756957520960,0.333,4400.0,4399.9,2.37642367]
[1756957521257,0.5177,4400.0,4399.9,2.90722367]
[1756957522262,0.4287,4400.5,4400.0,0.2938]
[1756957522451,0.6366,4400.5,4400.4,0.3994]
[1756957522647,0.6366,4400.5,4400.4,0.6364]
[1756957523048,0.8282,4400.5,4400.4,0.6364]
[1756957524653,0.6366,4400.5,4400.4,0.9302]
[1756957525053,0.8282,4400.5,4400.4,0.9302]
[1756957528660,0.5177,4400.5,4400.4,0.9302]
[1756957530061,0.3098,4400.9,4400.8,0.6932]
[1756957530262,0.3098,4400.9,4400.8,2.90722367]
[1756957530561,0.5177,4401.4,4401.3,0.3994]
[1756957530756,1.50114833,4401.4,4401.3,0.237]
[1756957530958,0.3995,4400.7,4400.6,1.97702367]
[1756957531158,0.3098,4400.6,4399.8,2.27082367]
[1756957531358,0.6428,4400.0,4399.9,0.9302]
[1756957532455,0.1251,4400.5,4399.9,0.9302]
[1756957532754,0.1251,4401.0,4400.4,2.37642367]
[1756957532956,0.5177,4400.9,4400.8,2.67022367]
[1756957533155,0.5177,4400.9,4400.8,2.90722367]
[1756957534758,0.3098,4401.4,4400.8,2.61342367]
[1756957534964,0.5177,4401.4,4401.3,2.37642367]
[1756957535151,0.5177,4401.4,4401.3,2.90722367]
[1756957536065,0.3098,4401.4,4401.3,2.90722367]
[1756957536258,0.5177,4401.4,4401.3,2.90722367]
[1756957538962,0.3098,4401.4,4401.3,2.90722367]
[1756957539161,0.7093,4401.9,4401.8,0.1918]
[1756957539362,0.7093,4401.9,4401.8,0.4288]
[1756957540464,0.7093,4401.9,4401.8,0.6364]
[1756957540660,0.7093,4401.9,4401.7,1.97702367]
[1756957540866,0.3098,4401.8,4401.1,0.2938]
[1756957541069,0.3098,4401.8,4400.6,2.995]
[1756957541070,0.8344,4401.5,4401.4,2.67022367]
[1756957541268,0.8344,4401.5,4401.4,2.90722367]
[1756957541967,0.6428,4401.5,4401.4,2.90722367]
[1756957542168,0.3098,4401.5,4401.4,2.90722367]
[1756957542974,0.2878,4401.9,4401.4,2.61342367]
[1756957543275,0.3327,4402.0,4401.9,0.2066]
[1756957543471,0.5369,4402.0,4401.9,0.4436]
[1756957543667,0.8247,4402.0,4401.9,0.4436]
[1756957544765,0.6205,4402.0,4401.9,0.6393]
[1756957544970,0.4129,4402.0,4401.9,0.938]
[1756957545170,0.8247,4402.0,4401.9,0.6393]
[1756957547082,0.8247,4402.0,4401.9,0.938]
[1756957547475,0.8247,4402.0,4401.9,0.6393]
[1756957548079,0.8247,4402.0,4401.9,0.938]
[1756957548581,0.6103,4402.0,4401.9,0.938]
[1756957548785,0.8145,4402.0,4401.9,0.6393]
[1756957549874,0.8145,4402.0,4401.9,0.938]
[1756957550381,0.1251,4403.0,4401.9,0.938]
[1756957550582,0.6996,4402.1,4402.0,0.4023]
[1756957550880,0.8145,4402.0,4401.9,0.2066]
[1756957551081,0.8145,4402.0,4401.9,0.938]
[1756957551782,0.2878,4402.0,4401.9,0.938]
[1756957551990,0.4954,4402.0,4401.9,0.938]
[1756957552287,0.2878,4402.0,4401.9,0.938]
[1756957552682,0.1251,4403.0,4401.9,0.938]
[1756957552876,0.1251,4403.0,4401.9,0.6393]
[1756957553081,0.6996,4402.4,4402.3,2.37932367]
[1756957553289,0.6996,4402.4,4402.3,2.61632367]
[1756957554686,0.6996,4402.9,4402.8,0.2066]
[1756957554884,0.5267,4402.5,4402.4,0.2066]
[1756957555088,0.8145,4402.5,4402.4,0.4436]
[1756957555289,0.2878,4402.4,4402.3,1.97702367]
[1756957555589,0.6996,4402.4,4402.3,1.97099064]
[1756957555891,0.6996,4402.4,4402.3,2.17759064]
[1756957556593,0.6996,4402.4,4402.3,2.37329064]
[1756957556992,0.6996,4402.4,4402.3,2.67199064]
[1756957557288,0.2878,4402.4,4402.3,2.67199064]
[1756957558086,0.2878,4402.9,4402.4,0.2987]
[1756957558282,0.6996,4402.9,4402.8,2.13629064]
[1756957558482,1.26100394,4402.9,4402.8,2.37329064]
[1756957558785,1.26100394,4402.9,4402.8,2.67199064]
[1756957559486,1.26100394,4402.9,4402.8,2.37329064]
[1756957559893,1.26100394,4402.9,4402.8,2.67199064]
[1756957560084,0.56140394,4402.9,4402.8,2.67199064]
[1756957560283,0.4954,4402.9,4402.8,2.43499064]
[1756957560494,0.6996,4402.9,4402.8,0.4023]
[1756957560794,0.6996,4402.9,4402.8,2.17759064]
[1756957560993,0.6996,4402.9,4402.8,2.67199064]
[1756957561594,0.4954,4402.9,4402.8,2.67199064]
[1756957562289,0.2878,4402.9,4402.8,2.67199064]
[1756957562487,1.73399064,4403.9,4402.8,2.67199064]
[1756957562488,0.2878,4403.9,4402.9,0.2987]
[1756957562686,0.6996,4403.7,4403.6,0.2066]
[1756957562891,0.6996,4403.7,4403.6,0.4426]
[1756957563195,0.6996,4403.7,4403.6,0.236]
[1756957563792,1.26099981,4403.7,4403.6,0.4426]
[1756957564097,1.26099981,4403.7,4403.6,2.17659064]
[1756957564294,1.26099981,4403.7,4403.6,1.94059064]
[1756957564500,0.4954,4402.9,4402.8,0.701]
[1756957564794,0.4954,4402.9,4402.8,2.67099064]
[1756957564993,0.1149,4403.5,4402.8,2.67099064]
[1756957565289,0.6996,4403.4,4403.3,0.2066]
[1756957565494,0.6996,4403.4,4403.3,0.4426]
[1756957566091,0.6996,4403.4,4403.3,0.937]
[1756957566292,0.6996,4403.4,4403.3,2.67099064]
[1756957566492,0.6996,4403.4,4403.3,2.43499064]
[1756957566698,0.4954,4403.4,4403.3,2.67099064]
[1756957566994,0.4954,4403.9,4403.8,0.4023]
[1756957567193,0.5267,4403.5,4403.4,0.2066]
[1756957567494,0.8145,4403.5,4403.4,1.90499064]
[1756957569391,0.8145,4403.5,4403.4,2.11159064]
[1756957570903,0.8145,4403.5,4403.4,2.30729064]
[1756957571300,0.6103,4403.5,4403.4,2.60599064]
[1756957571803,0.8145,4403.5,4403.4,2.37229064]
[1756957572003,0.5267,4403.5,4403.4,0.236]
[1756957572405,0.5267,4403.5,4403.2,1.73399064]
[1756957572600,0.3085,4402.9,4402.1,0.3133]
[1756957572801,0.5163,4402.2,4402.1,0.7245]
[1756957572998,0.5163,4402.2,4402.1,2.45849064]
[1756957573201,0.7081,4402.2,4402.1,0.4386]
[1756957573505,0.7081,4402.2,4402.1,2.17259064]
[1756957574599,0.7081,4402.2,4402.1,1.93659064]
[1756957574804,0.7081,4402.2,4402.1,2.17259064]
[1756957575501,0.7081,4402.2,4402.1,2.38119064]
[1756957576501,0.7081,4402.2,4401.0,32.8114]
[1756957576804,0.3996,4401.6,4401.5,1.93659064]
[1756957577101,0.2078,4400.7,4400.6,0.7245]
[1756957577403,0.7081,4400.7,4400.6,2.38119064]
[1756957577608,0.7081,4400.7,4400.6,0.6472]
[1756957577801,0.7081,4400.7,4400.6,2.38119064]
[1756957578905,0.7081,4400.7,4400.6,2.17259064]
[1756957579207,0.1218,4401.0,4400.6,2.69449064]
[1756957579406,0.5163,4400.9,4400.8,0.7245]
[1756957579705,0.7081,4400.9,4400.8,0.4112]
[1756957580500,0.7081,4400.9,4400.8,2.14519064]
[1756957581997,0.7081,4400.9,4400.8,1.93659064]
[1756957582204,0.7081,4400.9,4400.8,1.73399064]
[1756957582505,0.7081,4400.9,4400.8,1.93659064]
[1756957582701,0.7081,4400.9,4400.8,2.14519064]
[1756957582903,0.7081,4400.9,4400.8,2.45849064]
[1756957584398,0.5163,4400.9,4400.8,2.45849064]
[1756957586502,0.3085,4401.4,4400.8,2.14519064]
[1756957586705,1.36347116,4403.0,4402.3,0.4112]
[1756957586706,0.3085,4402.4,4402.3,0.4112]
[1756957586903,0.5163,4402.4,4402.3,2.45849064]
[1756957588110,0.3085,4402.4,4402.3,2.45849064]
[1756957588409,0.5163,4402.9,4402.8,0.4112]
[1756957588609,0.5163,4402.9,4402.8,2.14519064]
[1756957589111,0.5163,4402.9,4402.8,2.45849064]
[1756957590311,0.7081,4402.9,4402.8,2.14519064]
[1756957592920,0.7081,4402.9,4402.8,0.2026]
[1756957594911,0.7081,4402.8,4402.7,0.236]
[1756957595116,0.7081,4402.8,4402.7,1.96999064]
[1756957595311,0.7081,4402.8,4402.1,0.3133]
[1756957595615,0.5214,4402.5,4402.4,0.2026]
[1756957595914,0.8299,4402.5,4402.4,0.4112]
[1756957596118,0.8299,4402.5,4402.4,0.7245]
[1756957596718,0.8299,4402.5,4402.4,2.45849064]
[1756957597714,0.3085,4402.4,4402.2,1.73399064]
[1756957597923,0.8299,4402.0,4401.9,1.93659064]
[1756957598112,0.8299,4402.0,4401.9,2.17259064]
[1756957598307,0.8299,4402.0,4401.9,1.93659064]
[1756957598513,0.1218,4401.5,4400.5,0.0862]
[1756957598720,0.3996,4401.2,4401.1,1.93659064]
[1756957598921,0.7081,4401.2,4401.1,1.93659064]
[1756957599218,0.7081,4401.2,4401.1,1.73399064]
[1756957600325,0.2078,4401.2,4401.1,2.45849064]
[1756957600522,0.5163,4401.2,4401.1,2.45849064]
[1756957602316,0.7081,4401.2,4401.1,2.14519064]
[1756957602521,0.7081,4401.2,4401.1,2.44379064]
[1756957604123,0.7081,4401.2,4401.1,2.67979064]
[1756957604517,0.2979,4401.4,4401.2,0.2986]
[1756957604725,0.6844,4401.4,4401.3,0.2056]
[1756957605215,0.6844,4401.4,4401.3,0.4054]
[1756957605825,0.6844,4401.4,4401.3,0.704]
[1756957606422,0.6844,4401.4,4400.5,0.0862]
[1756957606619,0.6844,4401.4,4401.3,0.4054]
[1756957606820,0.493,4401.4,4401.3,2.43799064]
[1756957607722,0.493,4401.4,4401.3,0.704]
[1756957608224,0.6844,4401.4,4401.3,0.704]
[1756957608421,0.2979,4401.9,4401.4,0.2986]
[1756957608618,0.493,4401.9,4401.8,2.43799064]
[1756957609324,0.493,4401.9,4401.8,0.704]
[1756957609526,0.6844,4401.9,4401.8,0.4054]
[1756957609923,0.6844,4401.9,4401.8,0.704]
[1756957610126,0.2979,4402.4,4401.8,0.4054]
[1756957610428,0.493,4402.3,4402.2,2.43799064]
[1756957610626,0.6844,4402.3,4402.2,2.13939064]
[1756957613928,1.24497251,4402.3,4402.2,2.13939064]
[1756957615030,0.56057251,4402.3,4402.2,2.43799064]
[1756957615423,0.56057251,4402.3,4402.2,2.68054809]
[1756957616122,0.2979,4402.6,4402.2,2.38194809]
[1756957616319,1.17927089,4402.5,4402.4,0.704]
[1756957616723,1.05397089,4402.5,4402.4,0.704]
[1756957616923,0.85887089,4402.5,4402.4,0.704]
[1756957617125,0.56097089,4402.5,4402.4,0.704]
[1756957619925,0.1218,4403.0,4402.4,0.4054]
[1756957620122,0.6844,4402.8,4402.7,0.4054]
[1756957620323,0.94741424,4402.8,4402.2,1.97654809]
[1756957620527,0.6844,4401.8,4401.7,0.4054]
[1756957620830,0.1253,4402.5,4401.7,0.704]
[1756957621032,0.94737879,4402.4,4401.8,2.21254809]
[1756957621329,0.493,4401.9,4401.8,2.61794809]
[1756957621530,0.6844,4401.9,4401.8,2.61794809]
[1756957622121,0.6844,4401.9,4401.8,2.38194809]
[1756957622327,0.6844,4401.9,4401.8,0.236]
[1756957622529,0.5118,4401.5,4401.4,2.18214809]
[1756957622729,0.8097,4401.5,4401.4,2.41814809]
[1756957622940,0.8097,4401.5,4401.4,2.61794809]
[1756957623141,0.8097,4401.5,4401.4,0.2056]
[1756957623142,0.5118,4401.5,4401.4,0.2056]
[1756957623735,0.8097,4401.5,4401.4,0.4054]
[1756957623936,0.8097,4401.5,4401.4,0.704]
[1756957624443,0.8097,4401.5,4401.4,2.38194809]
[1756957626242,0.2979,4401.5,4401.4,2.68054809]
[1756957626944,0.2979,4401.9,4401.4,2.68054809]
[1756957627138,0.1951,4401.9,4401.8,0.4054]
[1756957627340,0.86001004,4401.9,4401.8,2.68054809]
[1756957627641,0.2979,4402.4,4401.8,2.68054809]
[1756957627840,0.493,4402.0,4401.9,0.94]
[1756957628040,0.6183,4402.0,4401.9,0.94]
[1756957628241,1.37195583,4402.0,4401.5,0.2986]
[1756957628439,0.5118,4401.5,4401.4,0.4054]
[1756957628638,0.8097,4401.5,4401.4,0.2056]
[1756957628943,0.8097,4401.5,4401.4,0.4416]
[1756957630232,0.8097,4401.5,4401.4,0.2056]
[1756957630437,0.8097,4401.5,4401.4,0.4416]
[1756957630837,0.8097,4401.5,4401.4,0.2056]
[1756957631137,0.8097,4401.5,4401.4,0.4416]
[1756957631642,0.8097,4401.5,4401.4,0.6414]
[1756957631941,0.8097,4401.5,4401.4,0.9348]
[1756957632142,0.3133,4401.9,4401.4,2.61794809]
[1756957632345,0.3133,4401.9,4401.8,1.97654809]
[1756957632543,0.3133,4401.9,4401.8,2.67634809]
[1756957632938,0.56252913,4401.9,4401.8,2.38294809]
[1756957633238,0.3133,4402.1,4402.0,0.4064]
[1756957633438,0.56260557,4402.1,4402.0,0.6424]
[1756957633634,0.56260557,4402.1,4402.0,0.5294]
[1756957633841,0.87590557,4402.1,4402.0,0.9358]
[1756957636335,0.3133,4402.1,4402.0,0.9358]
[1756957637035,0.5102,4402.1,4402.0,0.9358]
[1756957638739,0.1253,4402.5,4402.0,0.9358]
[1756957638933,0.1253,4402.5,4402.3,0.4064]
[1756957638934,0.75983318,4402.4,4402.3,0.4064]
[1756957639145,0.75983318,4402.4,4402.3,0.6998]
[1756957639639,0.1218,4403.0,4402.3,0.6424]
[1756957639844,0.1218,4403.0,4402.7,2.67634809]
[1756957639845,0.5102,4402.8,4402.7,2.67634809]
[1756957640042,1.07323098,4402.8,4402.7,2.91234809]
[1756957641245,0.5102,4402.8,4402.7,2.91234809]
[1756957642042,0.3133,4402.8,4402.7,2.91234809]
[1756957642449,0.5102,4402.8,4402.7,2.91234809]
[1756957642742,0.7096,4402.8,4402.7,2.91234809]
[1756957644046,1.27201525,4402.8,4402.7,2.91234809]
[1756957644250,1.07261525,4402.8,4402.7,2.91234809]
[1756957644439,0.56241525,4402.8,4402.7,2.91234809]
[1756957644839,1.27201525,4402.8,4402.7,0.9358]
[1756957645042,1.27201525,4402.8,4402.7,0.6424]
[1756957645744,1.27201525,4402.8,4402.7,0.9358]
[1756957646547,1.07261525,4402.8,4402.7,0.9358]
[1756957646848,0.3133,4403.1,4403.0,0.6998]
[1756957647049,0.3133,4403.4,4403.3,0.6998]
[1756957647248,0.3133,4403.4,4403.3,2.91134809]
[1756957647447,0.87558982,4403.4,4403.3,2.91134809]
[1756957647954,0.3133,4403.4,4403.3,2.91134809]
[1756957649055,0.1149,4404.5,4403.3,2.61794809]
[1756957649254,1.27148699,4403.9,4403.8,0.6998]
[1756957649449,1.27148699,4403.9,4403.8,0.9348]
[1756957650961,1.27148699,4403.9,4403.8,0.6414]
[1756957651157,0.7096,4403.9,4403.8,0.6414]
[1756957651750,0.7096,4403.9,4403.8,0.9348]
[1756957651952,0.7096,4403.9,4403.8,0.235]
[1756957652653,0.7096,4403.9,4403.4,1.97654809]
[1756957652654,0.1149,4403.5,4403.4,1.97654809]
[1756957652854,0.8245,4403.5,4403.4,0.4337]
[1756957654552,0.8245,4403.5,4403.0,2.26994809]
[1756957654750,0.7096,4402.7,4402.6,0.1987]
[1756957654951,0.7096,4402.7,4402.6,0.4337]
[1756957655152,0.7096,4402.7,4402.6,0.1987]
[1756957655451,0.7096,4402.7,4402.6,0.6414]
[1756957655657,0.7096,4402.7,4402.6,0.9348]
[1756957656056,0.5102,4402.5,4402.4,1.97654809]
[1756957656246,0.5102,4402.5,4402.4,2.61794809]
[1756957656453,0.3133,4403.4,4402.5,0.085]
[1756957656651,0.8245,4403.0,4402.9,2.38294809]
[1756957656850,0.8245,4403.0,4402.9,2.61794809]
[1756957657061,0.3133,4403.0,4402.9,2.91134809]
[1756957658155,0.3133,4403.4,4402.9,2.91134809]
[1756957658359,0.3133,4403.2,4402.9,2.21154809]
[1756957658551,0.3133,4403.2,4403.1,0.6998]
[1756957659157,0.5102,4403.2,4403.1,0.6998]
[1756957659756,0.7096,4403.2,4403.1,0.4064]
[1756957660056,0.5112,4403.0,4402.9,2.41024809]
[1756957660352,0.8245,4403.0,4402.9,2.41024809]
[1756957661061,0.8245,4403.0,4402.9,2.61794809]
[1756957661950,0.1149,4403.0,4402.9,0.235]
[1756957662155,0.1984,4402.4,4402.3,2.37714809]
[1756957662462,0.1984,4402.4,4402.3,2.90634809]
[1756957662654,0.4972,4402.4,4402.3,2.90634809]
[1756957664462,0.2988,4402.4,4402.3,2.90634809]
[1756957664664,0.1149,4403.0,4402.3,2.90634809]
[1756957665457,0.2988,4402.9,4402.3,2.61214809]
[1756957665656,0.822,4403.0,4402.9,0.2067]
[1756957665857,0.8223,4403.0,4402.9,0.4006]
[1756957666156,0.8223,4403.0,4402.9,0.4417]
[1756957666964,1.38446007,4403.0,4402.9,0.4417]
[1756957667560,1.38446007,4403.0,4402.9,0.235]
[1756957667764,1.08566007,4403.0,4402.7,1.97654809]
[1756957667966,0.7071,4402.8,4402.7,2.18324809]
[1756957668265,0.7071,4402.8,4402.7,2.90634809]
[1756957669264,0.7071,4402.8,4402.7,2.61214809]
[1756957669865,0.7071,4402.8,4402.7,0.2067]
[1756957670063,0.7071,4402.8,4402.7,0.4417]
[1756957671161,0.7071,4402.8,4402.7,0.6356]
[1756957671565,0.2988,4402.8,4402.7,2.90634809]
[1756957671865,0.2988,4402.9,4402.8,0.6948]
[1756957672062,0.86169775,4402.9,4402.8,0.9298]
[1756957672462,0.2988,4402.9,4402.8,0.9298]
[1756957672967,0.4972,4402.9,4402.8,0.9298]
[1756957673475,0.2988,4403.4,4402.9,0.2942]
[1756957673768,0.7071,4403.4,4403.3,0.4006]
[1756957673967,1.27004405,4403.4,4403.3,0.6356]
[1756957677059,1.27035976,4403.4,4403.3,0.6356]
[1756957678864,1.27035976,4403.4,4403.3,0.235]
[1756957679065,1.27035976,4403.4,4402.1,0.6948]
[1756957679066,0.7071,4402.2,4402.1,0.6948]
[1756957679268,0.7071,4402.2,4401.0,2.22592657]
[1756957679269,0.7071,4402.2,4401.4,32.716]
[1756957679470,0.3136,4401.5,4401.4,0.2067]
[1756957679770,0.5235,4401.5,4401.4,0.4417]
[1756957679964,0.8223,4401.5,4401.4,0.4417]
[1756957680166,0.8223,4401.5,4401.4,0.6356]
[1756957680567,0.8223,4401.5,4401.4,2.13389657]
[1756957680768,0.8223,4401.5,4401.4,0.235]
[1756957682374,0.8223,4401.5,4401.4,0.4417]
[1756957682574,0.8223,4401.5,4401.4,0.6356]
[1756957682774,0.8223,4401.5,4401.4,0.4417]
[1756957683268,0.2988,4401.4,4400.6,0.2942]
[1756957683576,0.4972,4400.7,4400.6,0.6948]
[1756957683870,0.4972,4400.7,4400.6,0.9298]
[1756957684070,0.4972,4400.7,4400.6,1.15704]
[1756957684673,0.4972,4400.7,4400.6,2.42809657]
[1756957684872,0.4972,4400.7,4400.6,2.66309657]
[1756957685084,0.7071,4400.7,4400.6,0.4006]
[1756957685272,0.7071,4400.7,4400.6,1.73329657]
[1756957685471,0.7071,4400.4,4400.3,0.3838137]
[1756957685670,0.7071,4400.4,4400.3,2.36889657]
[1756957686874,0.2988,4400.4,4400.3,2.66309657]
[1756957687078,0.2988,4400.4,4399.6,32.72]
[1756957687079,0.7071,4400.4,4399.5,0.0611]
[1756957687373,0.8223,4400.0,4399.9,1.93999657]
[1756957687969,0.4083,4401.5,4401.4,0.6948]
[1756957688170,0.4083,4401.6,4401.5,0.2067]
[1756957688586,0.4083,4401.6,4401.5,0.5009]
[1756957689783,0.4083,4401.6,4401.5,0.6948]
[1756957690086,0.7071,4401.6,4401.5,0.6948]
[1756957690385,0.7071,4401.6,4400.3,0.4089]
[1756957690386,0.2272,4401.5,4400.1,0.2942]
[1756957690688,1.73329657,4400.3,4399.5,0.1173]
[1756957690992,1.73329657,4400.3,4399.0,0.1173]
[1756957690993,1.73329657,4399.7,4399.0,0.6182]
[1756957691589,1.20211791,4400.9,4399.1,0.2942]
[1756957691789,0.79487717,4400.8,4399.1,0.2942]
[1756957691989,0.55987717,4400.7,4399.1,0.2942]
[1756957692288,0.55987717,4400.6,4399.1,0.2942]
[1756957692492,0.55987717,4400.5,4399.1,0.2942]
[1756957692684,0.55987717,4400.4,4399.1,0.2942]
[1756957692880,0.55987717,4400.3,4399.1,0.2942]
[1756957693084,0.55987717,4400.2,4399.1,0.2942]
[1756957693291,0.22728,4400.4,4399.1,0.2942]
[1756957693490,0.55870386,4400.3,4399.1,0.2942]
[1756957693687,0.55870386,4400.2,4399.1,0.499]
[1756957693883,0.235,4400.8,4399.1,0.499]
[1756957693884,5.83490597,4400.5,4399.1,0.499]
[1756957694091,0.55910006,4400.4,4399.2,0.507]
[1756957694393,0.22729,4400.4,4399.2,0.507]
[1756957694787,5.83490597,4400.5,4399.2,0.507]
[1756957695090,0.55879895,4400.4,4399.2,0.507]
[1756957695290,6.06218597,4400.5,4399.2,0.507]
[1756957695687,5.83490597,4400.5,4399.2,0.507]
[1756957695891,0.235,4400.4,4399.3,0.3022]
[1756957696690,0.235,4400.4,4399.3,0.507]
[1756957697885,0.235,4400.4,4399.3,0.2048]
[1756957698088,0.235,4400.4,4399.5,0.3231]
[1756957698384,0.235,4400.4,4399.6,0.3022]
[1756957698992,0.235,4400.4,4399.6,0.507]
[1756957701393,0.55828881,4400.3,4399.6,0.507]
[1756957701593,0.235,4400.4,4399.6,0.507]
[1756957701895,0.55828509,4400.3,4399.7,0.3022]
[1756957702097,0.235,4400.4,4399.7,0.507]
[1756957702286,0.55831528,4400.3,4399.7,0.507]
[1756957702488,0.235,4400.4,4399.7,0.507]
[1756957702689,0.55839428,4400.3,4399.7,0.507]
[1756957702888,0.235,4400.4,4399.7,0.507]
[1756957703187,0.55837409,4400.3,4399.7,0.507]
[1756957703493,0.55837409,4400.2,4399.6,0.3022]
[1756957703697,0.235,4400.4,4399.6,0.507]
[1756957703897,0.235,4400.4,4399.0,0.1173]
[1756957703898,5.83490597,4400.0,4399.3,0.3022]
[1756957704098,5.83490597,4399.4,4399.3,0.3022]
[1756957704395,6.06990597,4399.4,4399.3,0.3022]
[1756957704787,0.17737969,4400.4,4399.3,0.3956]
[1756957704994,6.39339779,4400.3,4399.5,0.1183]
[1756957705189,0.79349182,4400.2,4400.0,0.3231]
[1756957705395,0.235,4400.2,4400.1,0.3022]
[1756957705692,0.79348474,4400.2,4400.1,0.3022]
[1756957708595,0.55848474,4400.2,4400.1,0.6978]
[1756957708792,5.83490597,4401.5,4401.1,0.3022]
[1756957708991,0.3622,4401.3,4401.2,0.3956]
[1756957709192,0.92189386,4401.3,4401.0,0.1183]
[1756957709397,0.55969386,4401.2,4401.1,0.2048]
[1756957709598,0.92189386,4401.2,4401.1,0.2048]
[1756957710894,0.4754,4401.1,4401.0,0.1183]
[1756957711099,1.03509386,4401.1,4401.0,0.4205]
[1756957711295,0.1132,4401.0,4400.5,0.4205]
[1756957711498,0.55969386,4401.1,4400.0,0.1183]
[1756957711499,6.19710597,4400.6,4400.0,0.1183]
[1756957711702,0.1811,4400.2,4400.1,0.6978]
[1756957712002,0.55969386,4400.2,4400.1,0.3956]
[1756957712205,0.235,4400.8,4400.7,0.3956]
[1756957712505,0.97648638,4400.8,4400.7,0.6978]
[1756957714103,0.56038638,4400.8,4400.7,0.6978]
[1756957714404,0.235,4400.9,4400.7,0.6978]
[1756957714602,0.56038638,4400.8,4400.7,0.6978]
[1756957715002,0.56038638,4400.8,4400.7,4.6978]
[1756957715199,0.56038638,4400.8,4400.7,4.3956]
[1756957715399,0.235,4401.3,4401.2,0.3956]
[1756957715704,0.79609048,4401.3,4401.2,0.6978]
[1756957716407,0.56109048,4401.3,4401.2,0.6978]
[1756957717598,0.74219048,4401.3,4401.2,0.6978]
[1756957718414,0.56109048,4401.3,4401.2,0.6978]
[1756957720094,0.74219048,4401.3,4401.2,0.6978]
[1756957720300,0.56109048,4401.3,4401.2,0.6978]
[1756957720605,0.92329048,4401.3,4401.2,0.6978]
[1756957721108,0.74219048,4401.3,4401.2,0.6978]
[1756957721405,0.56109048,4401.3,4401.2,0.6978]
[1756957722706,7.03702388,4402.3,4402.0,0.8468]
[1756957722905,0.235,4402.1,4402.0,0.8468]
[1756957723306,0.4177,4402.1,4402.0,0.8468]
[1756957725502,1.20211791,4402.5,4402.0,0.8468]
[1756957725705,0.4792,4402.6,4402.5,0.3119]
[1756957726004,0.1138,4402.1,4402.0,0.1218]
[1756957726207,0.7142,4402.1,4402.0,0.4337]
[1756957726607,0.7142,4402.1,4402.0,0.3119]
[1756957726608,6.54910597,4402.1,4402.0,0.3119]
[1756957726904,6.54910597,4402.1,4401.5,0.4337]
[1756957727301,6.43530597,4402.1,4401.5,0.1218]
[1756957727707,6.54910597,4402.1,4401.6,0.3119]
[1756957728012,6.43530597,4402.1,4401.5,0.1218]
[1756957728200,0.3654,4401.7,4401.6,0.3119]
[1756957728408,0.6004,4401.7,4401.6,0.5178]
[1756957728706,0.7142,4401.7,4401.6,0.3119]
[1756957728901,0.7142,4401.7,4401.1,0.3119]
[1756957729209,0.4792,4401.2,4400.6,0.3119]
[1756957729409,0.4792,4400.7,4400.6,0.3119]
[1756957729611,0.7142,4400.7,4400.1,0.3119]
[1756957729910,0.1827,4400.2,4400.1,0.725]
[1756957730111,0.4792,4400.2,4400.1,0.3119]
[1756957730613,0.3654,4400.2,4400.1,0.5178]
[1756957730910,0.3654,4400.2,4400.1,0.725]
[1756957732114,0.235,4400.3,4400.1,0.725]
[1756957732316,0.235,4400.3,4400.2,0.3119]
[1756957732616,0.4177,4400.3,4400.2,0.725]
[1756957734212,5.83490597,4400.6,4400.5,0.8468]
[1756957734213,6.01760597,4400.6,4400.5,0.8468]
[1756957734417,6.25260597,4400.6,4400.5,0.8468]
[1756957734711,6.99519747,4400.6,4400.5,0.8468]
[1756957735317,1.1602915,4400.6,4400.5,0.8468]
[1756957735513,1.2740915,4400.6,4400.5,0.3119]
[1756957735812,1.2740915,4400.6,4400.1,0.3119]
[1756957736119,0.3654,4400.2,4400.1,0.5178]
[1756957736513,0.92543482,4400.2,4400.1,0.5178]
[1756957740819,1.03923482,4400.2,4400.1,0.3119]
[1756957741317,1.03923482,4400.2,4399.6,0.3119]
[1756957741318,7.67294747,4400.2,4399.6,0.3119]